Cogmind - Beta 16 @@@ ROGUE MODE // 2026.01.07 @ 19:46:53 Player: FrigidRock Result: Destroyed by G-47 Trooper with Particle Gun Performance ------------- Evolutions (2) 1000 Regions Visited (6) 1200 Robots Destroyed (62) 310 Value Destroyed (2407) 2407 Prototype IDs (1) 20 Alien Tech Used (0) 0 Bonus (514) 514 TOTAL SCORE: 5451 Bonus ------- High Alert Combat Kills 314 Entered Garrisons 200 Cogmind --------- Core Integrity 0/550 Matter 102/300 Energy 41/290 System Corruption 6% Temperature Critical (846) Movement Core (800) Ox15 Location -8/Garrison Parts ------- > --- POWER (1) -------- Improved Deuterium Engine > --- PROPULSION (3) --- (None) > --- UTILITY (4) ------ Improved Heat Sink Large Storage Unit Core Shielding > --- WEAPON (3) ------- Plasma Cannon Plasma Cannon > --- INVENTORY (15) --- Improved Deuterium Engine Huge Storage Unit Humpback High-capacity Matter Pod (200) Improved Signal Interpreter Peak State ------------ > --- POWER ------------ Improved Deuterium Engine > --- PROPULSION ------- Light Treads Armored Treads Armored Treads > --- UTILITY ---------- Large Storage Unit Machine Analyzer Improved Light Armor Plating Medium Reactive Plating > --- WEAPON ----------- Plasma Cannon Minigun Enhanced Autogun > --- INVENTORY -------- Improved Deuterium Engine Improved Deuterium Engine Light Treads Light Treads Huge Storage Unit Humpback High-capacity Matter Pod Improved Signal Interpreter Core Shielding Hardened Medium Armor Plating Plasma Cannon Plasma Cannon Chainsword Chainsword [Rating: 36] Favorites ----------- Power Light Nuclear Core Engine Improved Deuterium Engine Power Core Light Nuclear Core Propulsion Light Treads Treads Light Treads Utility Machine Analyzer Device Improved Heat Sink Storage Huge Storage Unit Processor Machine Analyzer Protection Hardened Medium Armor Plating Weapon Beam Cannon Energy Gun Small Laser Energy Cannon Beam Cannon Ballistic Gun Enhanced Autogun Ballistic Cannon Flak Cannon Launcher Missile Launcher Build | -11 -10 -10 -10 -9 -8 -8 ------- Run | Yrd Mat Min Exi Min Mat Gar Slots Evolved 4 | . . . . . 4 . Power . | . . . . . . . Propulsion 1 | . . . . . 1 . Utility 2 | . . . . . 2 . Weapon 1 | . . . . . 1 . Parts Attached 43 | 7 8 . . . 19 9 Power 6 | 1 2 . . . 2 1 Engine 4 | 1 . . . . 2 1 Core 2 | . 2 . . . . . Reactor . | . . . . . . . Propulsion 8 | 2 . . . . 4 2 Treads 8 | 2 . . . . 4 2 Leg . | . . . . . . . Wheel . | . . . . . . . Hover . | . . . . . . . Flight . | . . . . . . . Utility 16 | 2 4 . . . 7 3 Device 5 | 1 1 . . . 2 1 Storage 3 | 1 1 . . . 1 . Processor 1 | . 1 . . . . . Hackware . | . . . . . . . Protection 7 | . 1 . . . 4 2 Artifact . | . . . . . . . Weapon 13 | 2 2 . . . 6 3 Energy Gun 1 | 1 . . . . . . Energy Cannon 6 | . 2 . . . 3 1 Ballistic Gun 3 | 1 . . . . 2 . Ballistic Cannon 2 | . . . . . . 2 Launcher 1 | . . . . . 1 . Special Weapon . | . . . . . . . Impact Weapon . | . . . . . . . Slashing Weapon . | . . . . . . . Piercing Weapon . | . . . . . . . Special Melee Weapon . | . . . . . . . Unidentified Prototypes 1 | . . . . . 1 . Parts Lost 15 | . 1 . . . 2 12 Power 1 | . . . . . . 1 Propulsion 5 | . . . . . . 5 Utility 5 | . 1 . . . 1 3 Weapon 4 | . . . . . 1 3 Highest Loss Streak 11 | . 1 . . . 2 11 To Critical Strikes . | . . . . . . . Average Backups 13 | 2 7 12 16 17 16 13 Power 2 | . 2 3 3 3 2 1 Propulsion 2 | 1 2 2 3 3 2 1 Utility 5 | . 2 5 7 8 6 6 Weapon 2 | . . 1 3 3 3 2 Tool/Special . | . . . . . . . Unused Backups 18 | . 2 . . . 11 5 Power 3 | . . . . . 2 1 Propulsion 2 | . . . . . 2 . Utility 6 | . . . . . 3 3 Weapon 7 | . 2 . . . 4 1 Tool/Special . | . . . . . . . Average Slot Usage (%) 97 | . 96 100 100 100 92 97 Engine 3 | . 2 . . . 7 9 Core 9 | . 11 14 14 14 1 . Treads 27 | . 28 28 28 28 25 25 Device 2 | . 2 . . . 2 8 Storage 12 | . 14 14 14 14 9 9 Processor 10 | . 6 14 14 14 9 8 Protection 3 | . 1 . . . 11 9 Energy Cannon 21 | . 19 28 28 28 16 9 Ballistic Gun 3 | . 4 . . . 8 9 Ballistic Cannon 1 | . . . . . . 7 Peak Build Rating 36 | 9 12 13 13 13 36 36 Average Rating 18 | 5 10 12 13 13 30 34 On Entrance 13 | . 9 12 13 13 13 35 Avg Prop Armor Cover (%) . | . . . . . . . Naked Turns . | . . . . . . . Heaviest Build 135 | 14 91 91 91 91 135 79 Greatest Support 60 | 40 40 40 40 40 60 60 Greatest Overweight (x) 26 | . 2 2 2 2 2 26 Average Overweight (x) 1 | . . 2 2 2 1 . Largest Inventory Capacity 25 | 8 25 25 25 25 25 15 Average Capacity 19 | 7 9 25 25 25 20 15 Most Carried 25 | 4 9 16 18 18 25 15 Average Carried 13 | 2 7 12 16 18 17 14 Final Capacity 25 | 8 25 25 25 25 15 15 Final Carried 18 | 4 9 16 18 18 15 6 Class Distribution -------------------- 72% | Mutant 27% | Tank Dominant Class ---------------- Mutant | -10/Materials Mutant | -10/Mines Mutant | -10/Exiles Mutant | -9/Mines Tank | -8/Materials Tank | -8/Garrison Resources | -11 -10 -10 -10 -9 -8 -8 ----------- Run | Yrd Mat Min Exi Min Mat Gar Matter Collected 1637 | 244 369 10 . . 344 670 Remotely . | . . . . . . . Salvage Created 2161 | 76 507 183 . . 422 973 Parts 108 | 5 21 10 . . 35 37 Haulers Intercepted 1 | . 1 . . . . . Recyclers Shooed 4 | 1 . 3 . . . . Parts Field Recycled . | . . . . . . . Retrieved Matter . | . . . . . . . Parts Self-Destructed . | . . . . . . . Prevented . | . . . . . . . Parts Restored . | . . . . . . . Kills | -11 -10 -10 -10 -9 -8 -8 ------- Run | Yrd Mat Min Exi Min Mat Gar Combat Hostiles Destroyed 54 | . 10 3 . . 18 23 Guns 20 | . 6 . . . 7 7 Cannons 26 | . 3 3 . . 5 15 AOE 6 | . . . . . 6 . Classes Destroyed 12 | 2 3 2 . . 3 2 Worker 2 | . . 2 . . . . Builder 1 | . . . . . 1 . Tunneler 1 | 1 . . . . . . Hauler 1 | . 1 . . . . . Recycler 1 | 1 . . . . . . Mechanic 1 | . 1 . . . . . Operator 1 | . . . . . 1 . Swarmer 14 | . . 3 . . 11 . Grunt 31 | . 10 . . . 5 16 Brawler 2 | . . . . . . 2 Sentry 6 | . . . . . 2 4 Hunter 1 | . . . . . . 1 Best Kill Streak 8 | 1 4 3 . . 8 3 Combat Bots Only 7 | . 4 3 . . 7 3 Max Kills in Single Turn 4 | 1 1 1 . . 4 1 Gunslinging . | . . . . . . . Exploded 4 | . . . . . 4 . Melee . | . . . . . . . Uniques/NPCs Destroyed . | . . . . . . . Combat | -11 -10 -10 -10 -9 -8 -8 -------- Run | Yrd Mat Min Exi Min Mat Gar Hostile Shots Fired 343 | . 36 13 . . 91 203 Missed 71 | . 7 1 . . 21 42 Hits 272 | . 29 12 . . 70 161 Melee 3 | . . . . . . 3 Projectile 269 | . 29 12 . . 70 158 Critical Strikes 10 | . 1 . . . 2 7 Damage Taken 4185 | . 377 93 . . 758 2957 Core 608 | . 39 17 . . 37 515 Absorbed by Shields . | . . . . . . . Redirected to Shielding 2 | . . . . . . 2 Ignored by Resistances 321 | . . . . . 151 170 Core Remaining (%) 88 | 100 . . . 77 . . Volleys Fired 160 | 6 28 17 . . 32 77 Largest 3 | 2 2 2 . . 3 3 Hottest 240 | 60 120 120 . . 240 197 Shots Fired 371 | 12 56 34 . . 78 191 Gun 147 | 12 40 . . . 42 53 Cannon 221 | . 16 34 . . 33 138 Launcher 3 | . . . . . 3 . Special . | . . . . . . . Kinetic 174 | 6 20 . . . 42 106 Thermal 194 | 6 36 34 . . 33 85 Explosive 3 | . . . . . 3 . Electromagnetic . | . . . . . . . Robot Hit Streak 16 | 7 16 8 . . 7 9 Robot Miss Streak 11 | 1 3 3 . . 5 11 Penetration Max . | . . . . . . . Secondary Targets 2 | . 1 . . . 1 . Max Gunslinging Chain 1 | . 1 . . . 1 . Shots Hit Robots 223 | 10 42 20 . . 39 112 Core Hits 120 | 2 19 5 . . 26 68 Critical Kills 2 | . 1 . . . . 1 Critical Parts Destroyed 1 | . . . . . . 1 Critical Strikes 3 | . 1 . . . . 2 Meltdown 2 | . 1 . . . . 1 Destroy 1 | . . . . . . 1 Melee Attacks . | . . . . . . . Impact . | . . . . . . . Slashing . | . . . . . . . Piercing . | . . . . . . . Sneak Attacks . | . . . . . . . Combat Hostiles . | . . . . . . . Follow-up Attacks . | . . . . . . . Damage Inflicted 4901 | 119 564 379 . . 1328 2511 Guns 1380 | 119 336 . . . 402 523 Cannons 3033 | . 228 379 . . 438 1988 Explosions 473 | . . . . . 473 . Melee . | . . . . . . . Ramming 15 | . . . . . 15 . Kinetic 1969 | 66 161 . . . 402 1340 Thermal 2444 | 53 403 379 . . 438 1171 Explosive 473 | . . . . . 473 . Electromagnetic . | . . . . . . . Impact . | . . . . . . . Slashing . | . . . . . . . Piercing . | . . . . . . . Highest Corruption 6 | . . . . . 6 6 Average Corruption 6 | . . . . . 6 6 Corruption Purged . | . . . . . . . Corruption Blocked . | . . . . . . . Effects 48 | . . . . . 15 33 Message Errors 11 | . . . . . 4 7 Matter Fused 8 | . . . . . 3 5 Heat Flow Errors 7 | . . . . . 2 5 Energy Discharges 7 | . . . . . 1 6 Parts Rejected 2 | . . . . . . 2 Data Loss (minor) 7 | . . . . . 2 5 Data Loss (major) 2 | . . . . . . 2 Misfires 1 | . . . . . 1 . Alerts 1 | . . . . . 1 . Weapon Failures 2 | . . . . . 1 1 Overload Shots . | . . . . . . . Overflow Damage 36 | . . 16 . . 20 . Projectiles 22 | . . 16 . . 6 . Explosions 14 | . . . . . 14 . Melee . | . . . . . . . Knockbacks 6 | . . . . . . 6 Impact . | . . . . . . . Kinetic 6 | . . . . . . 6 Secondary . | . . . . . . . Self-Inflicted Damage . | . . . . . . . Shots . | . . . . . . . Rammed 2 | . . . . . 2 . Targets Rammed 2 | . . . . . 2 . Kicked . | . . . . . . . Crushed . | . . . . . . . Highest Temperature 837 | . 153 264 . . 446 837 Average Temperature 132 | . 72 105 . . 150 152 Received Heat Transfer 1691 | . 222 . . . 90 1379 Effects 17 | . . . . . 8 9 Shutdowns 5 | . . . . . 1 4 Energy Bleed 1 | . . . . . 1 . Interference 6 | . . . . . 6 . Matter Decay 2 | . . . . . . 2 Short Circuit 1 | . . . . . . 1 Damage (minor) 1 | . . . . . . 1 Damage (core) 1 | . . . . . . 1 Siege Activations . | . . . . . . . Martial Activations . | . . . . . . . Shielding Activations . | . . . . . . . Robots Disrupted . | . . . . . . . Combat Hostiles . | . . . . . . . Robots Corrupted . | . . . . . . . Combat Hostiles . | . . . . . . . Parts Fried . | . . . . . . . Impact Corruptions . | . . . . . . . Robots Melted 2 | . 1 . . . . 1 Combat Hostiles 2 | . 1 . . . . 1 Parts Melted 11 | . 3 2 . . 3 3 Heat Transferred 4920 | 125 881 814 . . 850 2250 Parts Sabotaged . | . . . . . . . Parts Stolen . | . . . . . . . Parts Stripped . | . . . . . . . Power Chain Reactions . | . . . . . . . Alert | -11 -10 -10 -10 -9 -8 -8 ------- Run | Yrd Mat Min Exi Min Mat Gar Maximum Alert Level 3 | . . . . . 1 3 Low Security (%) 75 | 100 100 100 . 100 90 8 Level 1 6 | . . . . . 9 19 Level 2 6 | . . . . . . 25 Level 3 11 | . . . . . . 46 Level 4 . | . . . . . . . Level 5 . | . . . . . . . High Security . | . . . . . . . Max Security . | . . . . . . . Peak Influence 913 | 5 102 85 . . 240 913 Initial 143 | . . . . . . 143 Average 174 | 1 20 10 . . 95 594 Influence Increases 1754 | 10 280 105 . . 539 820 Destroy 0b10 Robot/C 1080 | . 200 60 . . 360 460 Destroy 0b10 Robot/NC 50 | 10 10 20 . . 10 . Destroy Leader 152 | . 42 10 . . 70 30 Successful Hack 17 | . 13 . . . 4 . Disable Machine 75 | . . 15 . . 30 30 Anti-Garrison Action 100 | . . . . . . 100 Destroy Structure 55 | . . . . . 35 20 Lose Combat Pursuer 225 | . 15 . . . 30 180 Influence Decreases 911 | 10 280 105 . . 319 197 Entered New Map 77 | . . . . . . 77 Time Decay 606 | 10 192 105 . . 299 . Lost Part 150 | . 10 . . . 20 120 Purge Threat 78 | . 78 . . . . . Squads Dispatched 4 | . 2 . . . 2 . Investigation 1 | . 1 . . . . . Extermination . | . . . . . . . Reinforcement 3 | . 1 . . . 2 . Assault . | . . . . . . . Garrison . | . . . . . . . Intercept . | . . . . . . . Searches Triggered . | . . . . . . . Construction Impeded . | . . . . . . . Haulers Reinforced . | . . . . . . . Active Scanning Responses . | . . . . . . . Cargo Convoy Interrupts . | . . . . . . . Stealth | -11 -10 -10 -10 -9 -8 -8 --------- Run | Yrd Mat Min Exi Min Mat Gar Distress Signals 2 | . 2 . . . . . Communications Jammed . | . . . . . . . Distress Signals . | . . . . . . . Times Spotted 81 | . 16 3 . . 28 34 Peak Tracking Total 6 | . 4 3 . . 6 6 Tactical Retreats 7 | . 1 . . . 1 5 Traps | -11 -10 -10 -10 -9 -8 -8 ------- Run | Yrd Mat Min Exi Min Mat Gar Traps Triggered 4 | . 1 . . . . 3 Indirectly . | . . . . . . . Trap Hack Attempts . | . . . . . . . Triggered . | . . . . . . . Disarmed . | . . . . . . . Reprogrammed . | . . . . . . . Reused . | . . . . . . . Traps Extracted . | . . . . . . . Installed . | . . . . . . . Triggered . | . . . . . . . Machines | -11 -10 -10 -10 -9 -8 -8 ---------- Run | Yrd Mat Min Exi Min Mat Gar Machines Disabled 7 | . . 1 . . 2 4 Max in Single Turn 1 | . . 1 . . 1 1 Garrison Relay 2 | . . . . . . 2 Machines Repaired . | . . . . . . . Machines Dismantled . | . . . . . . . Machines Sabotaged . | . . . . . . . Overloaded Fab Kills . | . . . . . . . Hacking | -11 -10 -10 -10 -9 -8 -8 --------- Run | Yrd Mat Min Exi Min Mat Gar Machines Accessed 13 | . 7 . 4 . 2 . Terminals 8 | . 7 . . . 1 . Fabricators . | . . . . . . . Repair Stations . | . . . . . . . Recycling Units . | . . . . . . . Scanalyzers . | . . . . . . . Garrison Access 1 | . . . . . 1 . Total Hacks 21 | . 15 . 4 . 2 . Successful 13 | . 8 . 4 . 1 . Failed 8 | . 7 . . . 1 . Catastrophic . | . . . . . . . Database Lockouts . | . . . . . . . Manual 14 | . 12 . 1 . 1 . Terminals 16 | . 15 . . . 1 . Fabricators . | . . . . . . . Repair Stations . | . . . . . . . Recycling Units . | . . . . . . . Scanalyzers . | . . . . . . . Garrison Access 1 | . . . . . 1 . Terminal Hacks 5 | . 1 . 4 . . . Record 4 | . . . 4 . . . Unreport Threat 1 | . 1 . . . . . Fabricator Hacks . | . . . . . . . Repair Station Hacks . | . . . . . . . Recycling Unit Hacks . | . . . . . . . Scanalyzer . | . . . . . . . Garrison Access Hacks 1 | . . . . . 1 . Unlock Access 1 | . . . . . 1 . Unauthorized Hacks 7 | . 7 . . . . . Terminals 7 | . 7 . . . . . Botnet 1 | . 1 . . . . . Skim 6 | . 6 . . . . . Fabricators . | . . . . . . . Repair Stations . | . . . . . . . Recycling Units . | . . . . . . . Scanalyzers . | . . . . . . . Garrison Access . | . . . . . . . Data Cores Recovered . | . . . . . . . Used . | . . . . . . . Hacking Detections 8 | . 6 . . . 2 . Full Trace Events 1 | . 1 . . . . . Feedback Events . | . . . . . . . Feedback Blocked . | . . . . . . . Robot Schematics Acquired . | . . . . . . . Robots Built . | . . . . . . . Authchips . | . . . . . . . Time . | . . . . . . . Total Robot Build Rating . | . . . . . . . Part Schematics Acquired . | . . . . . . . Parts Built . | . . . . . . . Authchips . | . . . . . . . Time . | . . . . . . . Total Part Build Rating . | . . . . . . . Part Studies Acquired . | . . . . . . . Parts Repaired . | . . . . . . . Time . | . . . . . . . Parts Recycled . | . . . . . . . Recycled Matter . | . . . . . . . Retrieved Matter . | . . . . . . . Retrieved Components . | . . . . . . . Parts Scanalyzed . | . . . . . . . Part Schematics Acquired . | . . . . . . . Parts Damaged . | . . . . . . . Bothacking | -11 -10 -10 -10 -9 -8 -8 ------------ Run | Yrd Mat Min Exi Min Mat Gar Used RIF Installer . | . . . . . . . Robots Hacked . | . . . . . . . Non-combat . | . . . . . . . Combat . | . . . . . . . Robot Hacks Applied . | . . . . . . . Relay Couplers Released 8 | . . . . . . 8 Machine Destruction 8 | . . . . . . 8 Fabnet Peak Effective % . | . . . . . . . Robots Rewired . | . . . . . . . Allies Hacked . | . . . . . . . Hacks Repelled . | . . . . . . . Allies | -11 -10 -10 -10 -9 -8 -8 -------- Run | Yrd Mat Min Exi Min Mat Gar Total Allies . | . . . . . . . Largest Group . | . . . . . . . Highest-Rated Group . | . . . . . . . Highest-Rated Ally . | . . . . . . . Total Orders . | . . . . . . . Ally Attacks . | . . . . . . . Total Damage . | . . . . . . . Kills . | . . . . . . . Allies Corrupted . | . . . . . . . Allies Melted . | . . . . . . . Intel | -11 -10 -10 -10 -9 -8 -8 ------- Run | Yrd Mat Min Exi Min Mat Gar Active Infowar (turns) 5410 | 23 524 672 2107 116 1028 940 Terrain 36 | 23 13 . . . . . Machine Analysis 5374 | . 511 672 2107 116 1028 940 Robot Analysis Total . | . . . . . . . Derelict Logs Recovered . | . . . . . . . Drone Launches . | . . . . . . . Drone Recoveries . | . . . . . . . Exploration | -11 -10 -10 -10 -9 -8 -8 ------------- Run | Yrd Mat Min Exi Min Mat Gar Turns Passed 6222 | 142 1157 672 2107 116 1041 987 Spaces Moved 2152 | 71 448 192 659 37 354 391 Core 4 | 3 . . . . . 1 Treads 2148 | 68 448 192 659 37 354 390 Legs . | . . . . . . . Wheels . | . . . . . . . Hover . | . . . . . . . Flight . | . . . . . . . Fastest Speed 50 | 50 160 320 320 320 166 163 Average Speed 244 | 155 172 320 320 320 243 171 Slowest Speed 1350 | 160 320 320 320 320 323 1350 Overloaded Moves . | . . . . . . . Propulsion Burnouts . | . . . . . . . Robots Hopped . | . . . . . . . Potential Cave-ins . | . . . . . . . Cave-ins Triggered 1 | . . . . . 1 . Exploration Rate (%) 39 | 5 62 27 92 14 35 38 Regions Visited 6 Branch Regions 3 Pre-discovered Areas . | . . . . . . . Known Exits Taken 3 | . 1 . 1 . 1 . Unknown Exits Taken 3 | 1 . 1 . 1 . . Scrap Searched . | . . . . . . . Spaces Dug . | . . . . . . . Terrain Destroyed 37 | . . . . . 37 . Melee . | . . . . . . . Projectile 15 | . . . . . 15 . AOE 22 | . . . . . 22 . Terrain Rammed . | . . . . . . . Walls Destroyed . | . . . . . . . Machines Disabled . | . . . . . . . Actions | -11 -10 -10 -10 -9 -8 -8 --------- Run | Yrd Mat Min Exi Min Mat Gar Total 2833 | 87 778 217 659 36 482 574 Wait 400 | . 285 2 . . 37 76 Move 2147 | 70 447 191 658 36 354 391 Hop . | . . . . . . . Pick Up 26 | 4 3 7 1 . 9 2 Fast Attach 27 | 7 5 . . . 11 4 Attach 10 | . . . . . 2 8 Detach 6 | . 2 . . . 4 . Swap 21 | . 3 . . . 8 10 Drop 34 | . 5 . . . 23 6 Fire 160 | 6 28 17 . . 32 77 Melee . | . . . . . . . Ram . | . . . . . . . Kick . | . . . . . . . Crush 2 | . . . . . 2 . Escape Stasis . | . . . . . . . Rewire . | . . . . . . . Trap . | . . . . . . . Miscellaneous . | . . . . . . . Route ------- -11/Scrapyard -10/Materials (discovered 4 exits: *Mat x3 / *Min) -10/Mines (discovered 3 exits: *Mat x2 / *Exi) -10/Exiles (discovered 2 exits: *Min x2) -9/Mines -8/Materials (discovered 2 exits: [*Fac] / Gar) -8/Garrison (discovered 1 exit: [*Mat]) History --------- Turn | Location | Event 16 | -11/Scrapyard | Discovered new exit (range 14) 143 | -11/Scrapyard | Entered Materials 311 | -10/Materials | Build established: Mutant 631 | -10/Materials | Discovered new exit (range 7) 835 | -10/Materials | Discovered new exit (range 16) 912 | -10/Materials | Learned 2 Storage zone layouts 990 | -10/Materials | Learned 2 Storage zone layouts 1024 | -10/Materials | Learned Storage emergency access door positions 1046 | -10/Materials | Identified exit to Materials 1077 | -10/Materials | Identified exit to Mines 1300 | -10/Materials | Entered Mines 1339 | -10/Mines | Discovered exit to Materials (range 12) 1726 | -10/Mines | Discovered new exit (range 5) 1751 | -10/Mines | Discovered exit to Materials (range 4) 1834 | -10/Mines | Deemed a non-threat by the Exiles lab entrance 1972 | -10/Mines | Entered Exiles 1972 | -10/Exiles | Found Exiles lab abandoned 1973 | -10/Exiles | Identified exit to Mines 4079 | -10/Exiles | Entered Mines 4175 | -9/Mines | Discovered new exit (range 5) 4195 | -9/Mines | Entered Materials 4195 | -8/Materials | Evolved 4 slots: Propulsion x1, Utility x2, Weapon x1 4543 | -8/Materials | Crushed by falling debris 4633 | -8/Materials | Discovered new exit (range 15) 4901 | -8/Materials | Build established: Tank 5016 | -8/Materials | Destroyed 7 combat bots 5236 | -8/Materials | Identified exit to Garrison 5236 | -8/Materials | Entered Garrison 5288 | -8/Garrison | Triggered checkpoint 5321 | -8/Garrison | Garrison Relay disabled 5446 | -8/Garrison | Triggered checkpoint 5592 | -8/Garrison | Triggered checkpoint 5692 | -8/Garrison | Triggered checkpoint 5765 | -8/Garrison | Garrison Relay disabled 5867 | -8/Garrison | Discovered new exit (range 12) 5914 | -8/Garrison | Triggered checkpoint 5948 | -8/Garrison | Triggered checkpoint 6082 | -8/Garrison | Spotted B-75 Beast 6206 | -8/Garrison | Core integrity fell below 50% 6219 | -8/Garrison | Core integrity fell below 20% 6223 | -8/Garrison | Destroyed by G-47 Trooper with Particle Gun Last Messages --------------- 06184_ Knocked back. 06187_ Power failure, Imp. Deuterium Engine shutdown. 06189_ Acquired 20 matter. 06202_ Flak Cannon destroyed. 06202_ Knocked back. 06205_ Plasma Cannon destroyed. 06207_ CJSS&EUBHPLHCOL0HLXMLQQ=JN 06211_ Critical hit (Meltdown: +320). 06211_ Med. Reactive Plating destroyed. 06212_ Overheating: Matter decay (-28). 06214_ Power failure, Imp. Deuterium Engine shutdown. 06214_ Hrd. Medium Armor Plating destroyed. 06215_ Overheating: Plasma Cannon damaged (-13). 06215_ Acquired 4 matter. 06217_ G-47 Trooper destroyed. 06219_ Overheating: Core damaged (-88). 06220_ Overheating: Matter decay (-29). 06221_ Power failure, Imp. Deuterium Engine shutdown. 06221_ Imp. Heat Sink broken. 06221_ Overheating: Short circuit. Map ----- +----------------------------------------------------+ | ????" "#????????????#### !!###???????????????????? | | ????" "?????????????# ! !*#???????????????????? | | ???? ^ ?????????????# ########???????????????????? | | ????# #???????????### #??????????###?????????????? | | ???## ##?????###??# #?????????? ?????????????? | | ???#] !#?????# ??# #??????????